[Event "Sautron op 15th"]
[Site "Sautron"]
[Date "2015.10.24"]
[Round "9.6"]
[White "Migot, Tangi"]
[Black "Stany, George Anthony"]
[Result "0-1"]
[ECO "E32"]
[WhiteElo "2399"]
[BlackElo "2385"]
[Annotator "Stany,GA"]
[PlyCount "78"]
[EventDate "2015.10.24"]
[EventType "swiss"]
[EventRounds "9"]
[EventCountry "FRA"]
[SourceTitle "CBM 169 Extra"]
[Source "ChessBase"]
[SourceDate "2015.12.18"]
[SourceVersion "1"]
[SourceVersionDate "2015.12.18"]
[SourceQuality "1"]
[TimeControl "40/5400+30:1800+30"]
[WhiteClock "0:00:59"]
[BlackClock "0:03:34"]

{This was the final round of Sautron Open and a win would have helped me to
gain few rating points and tie for first place as well.} 1. d4 {[%emt 0:00:00]
My opponent has generally played 1.e4 and occasionally played 1.d4 so it was
understandable that he was not very well prepared in the opening} Nf6 {[%emt 0:
00:00]} 2. c4 {[%emt 0:00:00]} e6 {[%emt 0:00:00]} 3. Nc3 {[%emt 0:00:18]} Bb4
{[%emt 0:00:00]} 4. Qc2 {[%emt 0:00:41]} O-O {[%emt 0:00:00]} 5. e4 $1 {
[%emt 0:01:08] I liked his opening choice because (a) I was surprised, (b) I
had never faced this line so far in a tournament game; therefore, had very
less idea about the theory, and (c) It is a dynamic move and suits our current
tournament situation.} d5 {[%emt 0:06:00]} 6. e5 {[%emt 0:00:11]} Ne4 {[%emt 0:
00:04]} 7. Bd3 {[%emt 0:00:14]} c5 {[%emt 0:00:14]} 8. a3 {[%emt 0:00:48]
During the game 8.a3 looked natural and I was out of theory from here.} Bxc3+ {
[%emt 0:13:39]} 9. bxc3 {[%emt 0:00:07]} Qa5 {[%emt 0:05:00]} (9... cxd4 {
Generelly top players have gone with cd4 first, then Qa5 followed by f6 later.}
10. cxd4 Qa5+ 11. Kf1 Nc6 12. Ne2 f6 13. Bxe4 dxe4 14. exf6 Rxf6 15. Be3 b6 16.
h4 Bb7 17. Rh3 Ne7 18. Kg1 Rc8 19. Bg5 Rf7 20. Rc3 Nf5 21. Rb1 h6 22. Rb5 Qa6
23. Rb4 Bc6 24. d5 exd5 25. cxd5 Bd7 26. Rxc8+ Qxc8 27. Qxc8+ {1/2-1/2 (27)
Bartel,M (2658)-Tomashevsky,E (2740) Moscow 2012}) 10. Ne2 {[%emt 0:14:51]}
cxd4 {[%emt 0:00:11]} 11. Bxe4 $6 $146 {[%emt 0:09:53]} ({I was expecting} 11.
cxd5 exd5 12. f3 Nxc3 13. Nxd4 Nb5+ (13... Ne4+ 14. Ke2 f5 $13) 14. Bd2 Nxd4
15. Bxh7+ Kh8 16. Bxa5 Nxc2+ 17. Bxc2 Nc6 18. Bb4 Nxb4 19. axb4 f6 20. exf6
Rxf6 21. Kd2 Bd7 22. Rhe1 a6 23. Re7 Rd8 24. Rae1 Kg8 25. h4 Kf8 26. h5 Be8 27.
Rxb7 Bxh5 28. Rh1 Rh6 29. g4 Be8 30. Rxh6 gxh6 31. Rb6 Kg7 32. Bd3 Rd7 33. Bxa6
Rf7 34. Rb7 Bd7 35. b5 Kf6 36. b6 Ke6 37. Bb5 {1-0 (37) Karpov,A (2619)
-Pelletier,Y (2578) Cap d'Agde 2013}) 11... dxe4 {[%emt 0:00:14]} 12. Qxe4 {
[%emt 0:00:08]} Nd7 $1 {[%emt 0:03:28]} (12... Nc6 13. Bf4 dxc3 14. O-O {
and white is doing fine}) 13. O-O {[%emt 0:09:19]} (13. Bf4 {Doesn't work now
due to} Nc5 14. Qxd4 Nb3) 13... Qxe5 {[%emt 0:06:47]} 14. Qf3 {[%emt 0:06:00]}
(14. Qxe5 Nxe5 15. cxd4 Nxc4 {is clear lost for White}) 14... dxc3 {[%emt 0:03:
07]} 15. Bf4 $1 {[%emt 0:00:18] The only way for White to survive is by
hindering Blacks development and also by putting pressure with continuous
threats} Qf5 {[%emt 0:07:27] I thought my Queen would be safest on g6 square} (
15... Qa5 16. Bd6 Re8 17. Bb4 Qc7 18. Nxc3) (15... Qf6 16. Nxc3 Nb6 17. Ne4 Qg6
18. Nd6) 16. Ng3 {[%emt 0:05:01]} (16. Nxc3 Nb6 17. Nb5 e5 18. Bg3 Qxf3 19.
gxf3 Nxc4) 16... Qg6 {[%emt 0:02:19]} 17. Bd6 {[%emt 0:06:13]} Re8 {[%emt 0:02:
05] and no more threats!} 18. Ne4 $6 {[%emt 0:02:07] Ne4 is tempting but it is
misplaced here, Now it helps Black to gain control over a8-h1 diagonal as
happened in the game} (18. Rfc1 c2 19. Ra2 e5 20. c5 {was the best way to
fight although Black is still better after e4 followed by Nf6} e4) 18... Nb6 {
[%emt 0:16:43]} 19. Rfe1 {[%emt 0:24:42]} (19. c5 Nc4 {was my idea} 20. Nxc3 (
20. Rfc1 Bd7 21. Rxc3 Nxd6 22. Nxd6 Bc6 $17) 20... Nd2) 19... Nxc4 {[%emt 0:03:
12]} 20. Qxc3 {[%emt 0:00:50]} b5 $1 {[%emt 0:01:18] My opponent missed this
move} 21. Bg3 {[%emt 0:00:49]} (21. a4 Bb7 $19) 21... Bb7 {[%emt 0:01:35] Now
I am two pawns up and clearly winning} 22. Nc5 {[%emt 0:00:30]} Bd5 {[%emt 0:
01:05]} 23. Na6 {[%emt 0:00:47]} Rac8 {[%emt 0:03:32] Thanks to my well placed
Queen on g6 White can never play Nc7} 24. Qb4 {[%emt 0:00:57]} (24. Qd4 Ba8 25.
Qxa7 e5 $19) 24... h5 {[%emt 0:01:06]} 25. f3 {[%emt 0:03:11]} (25. h4 f5 26.
Qb1 Nd2 27. Qb4 Ne4) 25... Bxf3 {[%emt 0:05:06]} 26. Ra2 {[%emt 0:10:15]} (26.
gxf3 h4 27. Kg2 hxg3 28. hxg3 Ne3+ $1 {I thought my opponent would fall into
this but he escaped} 29. Rxe3 Rc2+ 30. Kh1 (30. Kh3 Qh6+ 31. Qh4 Qxe3) 30...
Qxg3) 26... Bd5 {[%emt 0:09:04]} 27. Rf2 {[%emt 0:00:13]} e5 {[%emt 0:03:54]}
28. Qxb5 {[%emt 0:01:00]} Qc6 {[%emt 0:00:19] Forcing the exchange. Once the
queens are off the board it was easy to convert the material into a win.} 29.
a4 {[%emt 0:02:14]} Qxb5 {[%emt 0:01:35]} 30. axb5 {[%emt 0:00:02]} f6 {
[%emt 0:00:22]} 31. Rc2 {[%emt 0:02:00]} Na3 {[%emt 0:00:48]} 32. Rb2 {[%emt 0:
00:28]} Bc4 {[%emt 0:01:22]} 33. Ra1 {[%emt 0:00:38]} Nxb5 {[%emt 0:00:17]} 34.
Nb4 {[%emt 0:00:26]} Nd4 {[%emt 0:02:32]} 35. Rxa7 {[%emt 0:00:38]} Ne2+ {
[%emt 0:00:49]} 36. Kf2 {[%emt 0:00:06]} Nxg3 {[%emt 0:00:04]} 37. Kxg3 {
[%emt 0:00:04]} Rb8 {[%emt 0:00:06]} 38. Rd2 {[%emt 0:01:18]} Rxb4 {[%emt 0:00:
27]} 39. Rdd7 {[%emt 0:00:06]} Kh8 {[%emt 0:00:05]} 0-1